[Event "ROM-chT"]
[Site "Predeal"]
[Date "2007.10.16"]
[Round "4"]
[White "Marin, Mihail"]
[Black "Moldovan, Daniel"]
[Result "1/2-1/2"]
[ECO "A29"]
[WhiteElo "2551"]
[BlackElo "2434"]
[Annotator "Marin,M"]
[PlyCount "105"]
[EventDate "2007.10.13"]
[EventType "team"]
[EventRounds "9"]
[EventCountry "ROU"]
[SourceTitle "CBM 121"]
[Source "ChessBase"]
[SourceDate "2007.11.14"]
[SourceVersion "1"]
[SourceVersionDate "2007.11.14"]
[SourceQuality "1"]
[TimeControl "5400"]
[WhiteClock "0:00:16"]
[BlackClock "0:00:16"]

1. c4 e5 2. g3 Nf6 3. Bg2 d5 4. cxd5 Nxd5 5. Nc3 Nb6 6. Nf3 Nc6 7. O-O Be7 8.
a3 O-O 9. b4 Be6 10. Rb1 f6 11. d3 a5 12. b5 Nd4 13. Nd2 Bd5 {One of the big
paradoxes of modern chess theory. Black gives up his light-squared bishop,
leaving the monster from g2 unchallenged and is supposed to equalise!} 14. Nxd5
Nxd5 15. Bb2 a4 16. Ba1 $146 {The move (in connection with the next one) was
suggested to me by IM Ovidiu Foisor several years ago.} ({I had tried} 16. Bxd4
exd4 17. Qc2 {twice, for the simple reason that I wanted to check first
whether White really needs to be so refined (Bb2-a1xd4).} Kh8 $5 {is trickier
and seems to offer Black adequate play.} (17... Nc3 $6 {worked out well for
White.} 18. Bxb7 Rb8 19. Bc6 $1 {It is important to keep the b5-pawn well
defended, in order to cut Black's army into two.} (19. Bf3 Bxa3 20. Ra1 Bb4 21.
Nb1 {1/2-1/2 Chernin,A (2572)-Van den Doel,E (2547)/Korinthos 2000/EXT 2001})
19... Nxe2+ (19... Nxb1 20. Rxb1 $16 {><a4}) 20. Kg2 Nc3 21. Ra1 $1 Kh8 22. Ne4
Nd5 $2 (22... Nxb5 23. Qxa4 Nc3 24. Qc4 f5 25. Nxc3 dxc3 26. a4 $16) 23. Qxa4
f5 24. Nd2 Nc3 25. Qc4 f4 26. a4 $18 Rf5 27. Nf3 Rh5 28. Qf7 {1-0 Marin,M 
(2551)-Sulava,N (2552)/Cannes (open) 2002.}) 18. Nc4 Re8 19. Rfe1 (19. Rbc1 Bf8
20. Qb2 Nc3 21. Rfe1 Rb8 22. e3 Qd7 23. b6 c6 24. e4 Bc5 25. f4 $14 {offered
White some advantage in Ostenstad,B (2480)-Johannessen,L (2555)/Moss 2006/TWIC
610 (1/2-1/2, 41). The open question remains what to do against 19...Bc5, as
played by Lima.}) 19... Bc5 20. Na5 Rxa5 21. Qxc5 Nc3 22. Bxb7 Re5 23. Qc4 Nxb1
24. Rxb1 Rxe2 25. Be4 f5 $1 {and White could not stabilize the position to his
favour in Marin,M (2511)-Lima,D (2533)/Mallorca 2004/CBM 104 (1/2-1/2, 39)})
16... Qd7 {Practically forced, but the queen will be exposed here.} (16... Ra5
17. Nc4 Ra7 (17... Rxb5 18. Rxb5 Nxb5 19. Qxa4 c6 20. Qb3 Rf7 21. Bh3 $16) 18.
e3 Nb3 19. Rxb3 $5 axb3 20. Qxb3 Kh8 21. d4 $14) (16... Kh8 17. e3 $16 {
[%csl Gg2] ץg2, /^h1-a8}) 17. Bxd4 $5 $146 {This is Ovidiu's idea.} (17. b6 {
is also interesting} cxb6 $5 (17... c6 $2 {drops a piece to} 18. e4) (17...
Nxb6 18. Bxb7 Rab8 19. Be4 Bxa3 20. e3 Ne6 21. Qc2 $44 Bd6 22. d4 g6 23. Bc6
Qf7 24. dxe5 Bxe5 25. Bxe5 fxe5 26. Bxa4 Nxa4 {1/2-1/2 Johansson,L (2280)
-Motwani,P (2425)/Copenhagen 1991/EXT 97} 27. Rxb8 Rxb8 28. Qxa4 $16 {[%csl
Rc7,Ge4,Re5]}) 18. Nc4 Ra6 19. Bxd4 exd4 20. Bxd5+ Qxd5 21. Rxb6 Rxb6 22. Nxb6
Qc6 23. Nxa4 b5 24. Qb3+ Kh8 25. Nb2 Ra8 26. Ra1 b4 27. a4 Qc3 $44) 17... exd4
18. Qc2 Rf7 ({With the queen on the exposed d7-square,} 18... Nc3 $2 {does not
work at all:} 19. Bxb7 Ra7 20. Bc6 $16) (18... Kh8 $5 {is an important
alternative. In some lines, Black will avoid the unpleasant pin of the rook,
but in others, his queen will be undefended (after a bishop move).}) 19. Qc4 c6
$5 {If Black has to play this, something must have been wrong with his
strategy. Maybe he should have kept the light-squared bishop after all?!} (
19... Nb6 20. Qa2 Ra7 21. Nc4 (21. Rfc1 $5) 21... Qe6 (21... Nd5 $2 22. Ne5 $1
$18 {We can see here the drawbacks of the rook lift to f7.}) (21... Nc8 22.
Rfc1 Bf8 23. b6 $16) 22. Rb2 $14) 20. bxc6 bxc6 21. Ra1 $5 (21. Qxd4 $1 Bxa3
22. Ra1 (22. Nc4 Bf8 23. e4 {With ...Kh8 instead of ...Rf7, the f8-square
would not have been available to the bishop and the knight would have been
pinned now.} Nb4 24. Qxd7 Rxd7 25. Nb6 Rdd8 26. Nxa8 Rxa8 $44) 22... Qe7 {
and here I missed} 23. Qc4 $1 $16 {/\Qxc6} ({calculating only} 23. Bxd5 cxd5
24. Qxd5 Rd8 $44)) 21... f5 {Indirectly defending the d4-pawn.} 22. Rfc1 $14 {
Black has numerous weaknesses and the simple rook moves, defending a3 or
attacking c6, cause him problems of coordination.} Rd8 (22... Bf6 23. Qxc6 $16)
23. Rc2 $1 (23. Qxc6 $6 Nc3 $1 $44) (23. Qxa4 $2 Nc3 24. Qc4 Nxe2+ $15) 23...
Bf6 24. Qxa4 Nc3 25. Qc4 Nxe2+ 26. Kf1 Nc3 (26... Qe7 $2 27. Re1 Re8 28. Nf3
$18 {פe2, צe1}) 27. Bxc6 {After the game, I reproached myself for this move,
but now I believe that the mistake came later.} (27. a4 f4 $5 $132) 27... Qd6
28. Ba4 $6 (28. Re1 $1 {[%csl Rf7][%cal Ye1e8,Yc6e8]} Kf8 {Being under some
time pressure, I stopped my "calculation" here.} 29. a4 $1 Rc8 (29... f4 30.
Ne4 $16) (29... Re7 30. Rxe7 Bxe7 31. Nf3 Bf6 32. Rb2 $40 {/\Rb7}) 30. Re6 Qb8
31. a5 $16) 28... Rdf8 $1 {I also missed this simple move.} 29. Qc6 (29. Bb3
Kh8 30. Qxf7 Rxf7 31. Bxf7 Qc6 32. f3 g5 $44 {The queen is quite dangerous,
especially in time trouble.}) 29... Qxc6 30. Bxc6 Rc7 31. Bf3 Rb8 32. a4 Ra7
33. Nc4 (33. a5 Ra6 34. Nc4 Bd8 $44 {White cannot activate his pieces easily
and the most likely result is a draw.}) 33... Rxa4 {This is possible, but not
necessary.} (33... Ra6 $5 $44) 34. Rxa4 Nxa4 35. Nd6 Nc3 (35... g6 36. Bd5+ Kf8
37. Rc7 $36) 36. Nxf5 $14 Rb6 $1 {[%csl Rf5] פf5} 37. g4 $138 (37. Kg2 Kf7 38.
h4 $6 h5 $1 {/\...g6}) 37... g6 38. Ng3 Be5 39. Kg2 Kg7 {[%csl Rc2,Rf4] צc2}
40. Rc1 Rb1 $1 41. Rxb1 Nxb1 42. Bd5 Nc3 43. Bc4 Kf6 44. h4 h6 45. h5 (45. Ba6
Bxg3 $1 (45... Bd6 46. h5 Bxg3 47. Kxg3 g5 48. f4 $1 Ne2+ 49. Kf3 Nxf4 50. Ke4
$18 Nh3 51. Kxd4 Nf2 52. Bc8 $1) 46. Kxg3 Ne2+ $1 (46... g5 47. hxg5+ hxg5 48.
f4 Ne2+ 49. Kf3 Nxf4 50. Ke4 Ne2 51. Bc4 $22 Kg6 52. Ke5 $22 Kh6 53. Bd5 Kg6
54. Bf3 Nf4 55. Kxd4 $18) 47. Kf3 Nc3 $11) 45... Bxg3 46. Kxg3 g5 $1 (46...
gxh5 $2 47. gxh5 Kg5 48. f4+ $1 $16 Kxh5 $2 49. Bf7#) 47. f4 (47. Kf3 Ke5 $15)
47... Ne2+ $1 48. Kf3 Nxf4 49. Ke4 Nh3 $8 50. Ba6 (50. Kxd4 Nf2 $11 {[%csl Gc4,
Re6,Yg4] ץc4}) 50... Nf2+ 51. Kf3 Nd1 52. Ke4 Nf2+ 53. Kf3 1/2-1/2

[Event "Sautron op 14th"]
[Site "Sautron"]
[Date "2014.10.25"]
[Round "5"]
[White "Lagarde, Maxime"]
[Black "Neelotpal, Das"]
[Result "1-0"]
[ECO "A29"]
[WhiteElo "2566"]
[BlackElo "2424"]
[Annotator "RR"]
[PlyCount "87"]
[EventDate "2014.10.26"]
[EventType "swiss"]
[EventRounds "9"]
[EventCountry "FRA"]
[SourceTitle "EXT 2015"]
[Source "ChessBase"]
[SourceDate "2014.11.20"]
[SourceVersion "1"]
[SourceVersionDate "2014.11.20"]
[SourceQuality "1"]
[TimeControl "40/5400+30:1800+30"]
[WhiteClock "0:26:38"]
[BlackClock "0:27:40"]

1. c4 {[%emt 0:00:00]} e5 {[%emt 0:00:43]} 2. Nc3 {[%emt 0:00:00]} Nf6 {
[%emt 0:00:03]} 3. g3 {[%emt 0:00:01]} d5 {[%emt 0:06:31]} 4. cxd5 {[%emt 0:00:
07]} Nxd5 {[%emt 0:00:03]} 5. Bg2 {[%emt 0:00:24]} Ne7 {[%emt 0:01:04] Un peu
bizarre} (5... Nb6 {Neelotpal,D (2424)-Belenkaya,D (2340) 14th Op Sautron 2014
(4) 1-0 La grande ligne}) 6. Nf3 {[%emt 0:01:50]} Nbc6 {[%emt 0:00:11]} 7. b4
$1 {[%emt 0:05:25][%csl Re5]} a6 {[%emt 0:00:09]} 8. Bb2 {[%emt 0:05:42]} (8.
O-O g6 9. a4 Bg7 10. Ba3 $14) 8... g6 {[%emt 0:02:36]} 9. a3 {[%emt 0:01:09]} (
9. a4 Bg7 10. b5 Nd4 11. Nxd4 exd4 12. Ne4 O-O 13. O-O Re8 14. Qc2 c6 15. d3
cxb5 16. axb5 Nd5 17. Rfc1 Rb8 18. Qc5 Nc3 19. Nxc3 dxc3 20. Bxc3 Bxc3 21. Rxc3
Rxe2 22. b6 Qf6 23. Rf1 Bf5 24. Qb4 Re6 25. Rb3 Rd6 26. Qf4 Rbd8 27. Bxb7 Rxb6
28. Rxb6 Qxb6 29. Be4 Be6 30. Qf6 Qd4 31. Qxd4 Rxd4 32. Ra1 Bc8 33. Rc1 Bd7 34.
Ra1 Bb5 35. Bb7 Rd7 36. Bc8 Rc7 37. Bxa6 Ra7 38. Bxb5 Rxa1+ {Mastrovasilis,A 
(2543)-Mchedlishvili,M (2609) Dresden 2007 0-1 (75)}) 9... Bg7 {[%emt 0:00:07]}
10. d3 {[%emt 0:00:07]} O-O {[%emt 0:01:15]} 11. O-O {[%emt 0:00:20]} Nf5 {
[%emt 0:00:44]} (11... h6 {[%cal Gc8e6]}) 12. Rc1 {[%emt 0:00:41]} Ncd4 $146 {
[%emt 0:03:52]} (12... Nfd4 13. e3 Ne6 14. Na4 Qd6 15. Qb3 Ncd8 16. Nd2 f6 17.
Nc4 Qe7 18. Ncb6 Rb8 19. Nxc8 Rxc8 20. d4 Kh8 21. Rfd1 Rb8 22. Rc2 Ng5 23. dxe5
fxe5 24. f4 Ngf7 25. Nc5 Rc8 26. Bh3 {1-0 (26) Ilivitzki,G-Dzagarov Soviet
Union 1967}) 13. Nd2 {[%emt 0:00:34]} c6 {[%emt 0:00:18][%csl Rb6]} 14. Nc4 {
[%emt 0:01:43]} Re8 {[%emt 0:01:24]} 15. Ne4 {[%emt 0:01:50]} Nb5 {[%emt 0:23:
23]} 16. e3 {[%emt 0:13:07]} Nbd6 {[%emt 0:03:10]} 17. Qe2 {[%emt 0:00:45]} Qe7
{[%emt 0:02:45]} 18. Nb6 {[%emt 0:02:19]} Rb8 {[%emt 0:10:44]} 19. Nc5 $14 {
[%emt 0:02:59]} h5 {[%emt 0:00:32]} 20. a4 {[%emt 0:06:52]} Nh6 {[%emt 0:02:00]
} 21. Nxc8 {[%emt 0:03:02]} Rbxc8 {[%emt 0:00:19]} 22. e4 {[%emt 0:00:20]} h4 {
[%emt 0:06:55]} 23. f4 {[%emt 0:08:11]} (23. Bh3 $5) 23... hxg3 {[%emt 0:01:06]
} 24. hxg3 {[%emt 0:00:57]} Rcd8 {[%emt 0:04:56]} 25. Qf3 {[%emt 0:05:35]} f5 {
[%emt 0:02:02]} (25... exf4 26. Bxg7 Kxg7 27. gxf4) 26. fxe5 {[%emt 0:05:33]}
Bxe5 {[%emt 0:01:13]} 27. d4 {[%emt 0:00:05]} Bg7 {[%emt 0:00:13]} 28. e5 $16 {
[%emt 0:02:42]} Nc8 {[%emt 0:00:51]} 29. b5 $1 $36 {[%emt 0:01:24][%csl Rb7]}
axb5 {[%emt 0:00:19]} 30. axb5 {[%emt 0:01:22]} Na7 {[%emt 0:03:20]} 31. Qb3+ {
[%emt 0:05:51]} (31. b6 $142 Nc8 (31... Nb5 32. Nxb7 $1 Qxb7 33. Qxc6) 32. Qb3+
Kh7 33. Nxb7 $1) 31... Kh7 {[%emt 0:00:17]} 32. bxc6 {[%emt 0:01:08]} bxc6 {
[%emt 0:00:31]} 33. Qb7 {[%emt 0:06:09]} Ng4 {[%emt 0:05:38]} 34. Bf3 {[%emt 0:
06:08]} Qg5 {[%emt 0:08:09]} 35. Rc2 {[%emt 0:00:39]} Re7 {[%emt 0:07:06]} 36.
Bc1 {[%emt 0:05:14]} Ne3 {[%emt 0:00:02]} 37. Rh2+ {[%emt 0:00:05]} Bh6 {
[%emt 0:00:03]} 38. Qxe7+ {[%emt 0:01:49]} Qxe7 {[%emt 0:00:09]} 39. Bxe3 {
[%emt 0:00:02]} g5 {[%emt 0:00:07]} 40. Kf2 {[%emt 0:00:00]} Kg6 {[%emt 0:00:
00]} 41. Rb1 {[%emt 0:11:31]} Nb5 {[%emt 0:06:42]} 42. Rbh1 {[%emt 0:00:28]}
Bf8 {[%emt 0:01:21]} 43. Bh5+ {[%emt 0:00:34]} Kg7 {[%emt 0:00:57]} 44. Bxg5 {
[%emt 0:00:38]} 1-0